Cogmind - Beta 13 X3 @@@ ROGUE MODE // 2024.02.13 @ 17:17:04 Player: Minty Result: Destroyed by S-27 Virus with Autogun Performance ------------- Evolutions (5) 2500 Regions Visited (15) 3000 Robots Destroyed (103) 515 Value Destroyed (5050) 5050 Prototype IDs (31) 620 Alien Tech Used (0) 0 Bonus (2926) 2926 TOTAL SCORE: 14611 Bonus ------- High Alert Combat Kills 334 Follower Combat Kills 461 Entered Garrisons 400 Used RIF Installer 1000 Entered DSFs 500 Aligned with FarCom 300 Friendly Fire -69 Cogmind --------- Core Integrity 0/1000 Matter 169/300 Energy 99/100 System Corruption 0% Temperature Cool (0) Movement Core (50) Location -5/Factory Parts ------- > --- POWER (2) -------- (None) > --- PROPULSION (3) --- (None) > --- UTILITY (7) ------ Targeting Computer Relay Coupler [NC] (31) Relay Coupler [Hunter] (15) > --- WEAPON (5) ------- (None) > --- INVENTORY (5) ---- Relay Coupler [NC] (31) Relay Coupler [Swarmer] (35) Relay Coupler [Grunt] (27) Relay Coupler [Brawler] (26) Relay Coupler [Demolisher] (18) Peak State ------------ > --- POWER ------------ Improved Deuterium Engine Antimatter Reactor > --- PROPULSION ------- Armored Treads Heavy Treads > --- UTILITY ---------- Improved Cooling System Small Storage Unit Damper Plating > --- WEAPON ----------- Beamcaster Beamcaster Beamcaster Heavy Beamcaster > --- INVENTORY -------- Hybrid Antimatter Reactor Improved Cooling System Advanced Transmission Jammer System Restoration Module AWS/Gauss Advanced Assault Cannon Improved Proton Missile Launcher [Rating: 80] Favorites ----------- Power Improved Deuterium Engine Engine Improved Deuterium Engine Power Core Micro Nuclear Core Reactor Hybrid Antimatter Reactor Propulsion Light Treads Treads Light Treads Leg Flexi-carbon Leg Hover Unit Gravmag System Flight Unit Field Propulsion Drive Utility Small Storage Unit Device Improved Cooling System Storage Small Storage Unit Processor Target Analyzer Hackware Relay Coupler [Hunter] Protection Damper Plating Weapon Beamcaster Energy Gun Beamcaster Energy Cannon Beam Cannon Ballistic Gun AWS/Gauss Ballistic Cannon Advanced Assault Cannon Launcher Improved Proton Missile Launcher Special Weapon Mining Laser Slashing Weapon Ripper Build | -11 -10 -10 -10 -9 -8 -7 -7 -6 -6 -6 -6 -6 -5 -5 -5 ------- Run | Yrd Mat Min Exi Min Mat Fac DSF Fac Was Fac Gar Ext Fac Gar Fac Slots Evolved 10 | . . . . . 4 2 . 2 . . . . 2 . . Power 1 | . . . . . . . . 1 . . . . . . . Propulsion 1 | . . . . . . . . 1 . . . . . . . Utility 5 | . . . . . 2 2 . . . . . . 1 . . Weapon 3 | . . . . . 2 . . . . . . . 1 . . Parts Attached 127 | . 2 5 . 6 14 2 13 . 11 15 32 17 2 . 8 Power 11 | . . 1 . . 1 . 1 . 1 3 2 . . . 2 Engine 4 | . . 1 . . . . 1 . . 1 1 . . . . Core 5 | . . . . . 1 . . . . 1 1 . . . 2 Reactor 2 | . . . . . . . . . 1 1 . . . . . Propulsion 27 | . . 2 . . 1 . 2 . 1 . 11 5 . . 5 Treads 12 | . . 2 . . 1 . 2 . 1 . 6 . . . . Leg 8 | . . . . . . . . . . . 4 4 . . . Wheel . | . . . . . . . . . . . . . . . . Hover 4 | . . . . . . . . . . . . 1 . . 3 Flight 3 | . . . . . . . . . . . 1 . . . 2 Utility 36 | . 1 1 . 1 5 2 3 . 3 6 9 4 1 . . Device 19 | . . 1 . 1 4 1 2 . 1 4 4 . 1 . . Storage . | . . . . . . . . . . . . . . . . Processor 4 | . 1 . . . . . 1 . . 1 . 1 . . . Hackware 5 | . . . . . 1 . . . . 1 1 2 . . . Protection 8 | . . . . . . 1 . . 2 . 4 1 . . . Artifact . | . . . . . . . . . . . . . . . . Weapon 53 | . 1 1 . 5 7 . 7 . 6 6 10 8 1 . 1 Energy Gun 32 | . . . . 3 6 . 5 . 4 4 7 3 . . . Energy Cannon 3 | . . 1 . . . . . . . 1 . . . . 1 Ballistic Gun 12 | . 1 . . 1 . . 2 . 1 1 2 4 . . . Ballistic Cannon 2 | . . . . . . . . . 1 . . . 1 . . Launcher 2 | . . . . . 1 . . . . . 1 . . . . Special Weapon 1 | . . . . 1 . . . . . . . . . . . Impact Weapon . | . . . . . . . . . . . . . . . . Slashing Weapon 1 | . . . . . . . . . . . . 1 . . . Piercing Weapon . | . . . . . . . . . . . . . . . . Special Melee Weapon . | . . . . . . . . . . . . . . . . Unidentified Prototypes 3 | . . . . . . . . . . 3 . . . . . Corrupted Parts 6 | . . . . . . . . . . . 3 3 . . . System Corruption 33 | . . . . . . . . . . . 28 5 . . . Parts Lost 31 | . . 1 . 1 1 . 5 . . . 3 9 1 3 7 Power 3 | . . 1 . . . . . . . . 1 1 . . . Propulsion 13 | . . . . . . . 2 . . . 1 4 . 1 5 Utility 9 | . . . . . . . 2 . . . 1 3 . 1 2 Weapon 6 | . . . . 1 1 . 1 . . . . 1 1 1 . Highest Loss Streak 7 | . . 1 . 1 1 . 5 . . . 2 7 1 3 5 To Critical Strikes . | . . . . . . . . . . . . . . . . Average Slot Usage (%) 83 | . 97 99 100 99 98 74 71 80 71 75 93 82 42 40 40 Engine 7 | . 14 13 14 14 7 . 1 6 6 5 6 5 . . . Core 2 | . . . . . 1 7 5 . . 2 5 5 . . . Treads 13 | . . 19 28 28 18 15 10 13 13 13 10 . . . . Leg 3 | . 28 8 . . . . . . . . 6 16 . . . Device 12 | . . 8 14 14 21 13 11 13 6 10 19 7 . 5 4 Storage 7 | . 14 14 14 14 9 7 7 6 6 6 6 5 . . . Processor 3 | . 11 5 . . . . 2 6 . 1 6 6 11 8 5 Hackware 2 | . . . . . 4 7 1 . . . 2 7 17 17 16 Protection 3 | . . . . . . 7 7 6 6 4 4 6 . . . Energy Gun 19 | . 14 14 14 17 35 15 16 20 20 25 18 6 4 . . Energy Cannon 1 | . . 8 14 2 . . . . . . . . . . . Ballistic Gun 2 | . 14 5 . 4 . . 4 6 4 . 2 6 . . . Naked Turns . | . . . . . . . . . . . . . . . . Heaviest Build 98 | 11 12 16 16 16 31 41 52 52 98 98 60 58 12 9 14 Greatest Support 90 | 20 20 40 40 40 40 40 40 40 90 90 90 60 9 9 14 Greatest Overweight (x) 13 | . . . . . . 1 13 1 1 1 2 1 1 . 1 Average Overweight (x) . | . . . . . . . 2 1 . . . . . . . Largest Inventory Capacity 8 | 8 8 8 8 8 8 8 8 8 8 8 8 8 5 5 5 Average Capacity 7 | 8 8 8 8 8 8 8 8 8 8 8 8 7 5 5 5 Most Carried 8 | 6 8 8 8 8 8 8 8 8 8 8 8 8 5 5 5 Average Carried 7 | 6 6 6 7 7 7 7 7 8 7 6 7 7 5 5 5 Final Capacity 8 | 8 8 8 8 8 8 8 8 8 8 8 8 5 5 5 5 Final Carried 8 | 6 8 6 8 8 8 7 8 8 8 5 8 5 5 5 5 Class Distribution -------------------- 58% | Scavenger-Skirmisher 26% | Mutant 11% | Skirmisher Dominant Class ---------------- Mutant | -10/Materials Mutant | -10/Mines Mutant | -10/Exiles Mutant | -9/Mines Skirmisher | -8/Materials Scavenger-Skirmisher | -7/Factory Scavenger-Skirmisher | -7/DSF Scavenger-Skirmisher | -6/Factory Scavenger-Skirmisher | -6/Waste Scavenger-Skirmisher | -6/Factory Scavenger-Skirmisher | -6/Garrison Scavenger-Skirmisher | -6/Extension Mutant | -5/Factory Mutant | -5/Garrison Mutant | -5/Factory Resources | -11 -10 -10 -10 -9 -8 -7 -7 -6 -6 -6 -6 -6 -5 -5 -5 ----------- Run | Yrd Mat Min Exi Min Mat Fac DSF Fac Was Fac Gar Ext Fac Gar Fac Matter Collected 1685 | 199 . 98 . 42 155 . 155 . 114 284 348 239 . 30 21 Remotely 110 | . . . . . 110 . . . . . . . . . . Salvage Created 4546 | . 74 169 . 192 887 . 552 62 . 1051 875 601 . 62 21 Parts 212 | . 6 8 . 7 35 . 27 5 . 55 47 21 . . 1 Haulers Intercepted 2 | . . . . . 1 . . . . 1 . . . . . Recyclers Shooed 4 | . . 2 . . . . . . . 2 . . . . . Parts Field Recycled . | . . . . . . . . . . . . . . . . Retrieved Matter . | . . . . . . . . . . . . . . . . Parts Self-Destructed . | . . . . . . . . . . . . . . . . Prevented . | . . . . . . . . . . . . . . . . Kills | -11 -10 -10 -10 -9 -8 -7 -7 -6 -6 -6 -6 -6 -5 -5 -5 ------- Run | Yrd Mat Min Exi Min Mat Fac DSF Fac Was Fac Gar Ext Fac Gar Fac Combat Hostiles Destroyed 86 | . 2 2 . 6 17 . 10 1 . 17 20 8 . 2 1 Melee 3 | . . . . . . . . . . 2 . 1 . . . Guns 67 | . 2 2 . 4 16 . 10 . . 12 15 6 . . . Cannons 4 | . . . . 1 . . . . . . . . . 2 1 AOE 8 | . . . . . 1 . . 1 . 1 5 . . . . Classes Destroyed 16 | . 1 2 . 1 7 . . . . 3 2 . . . . Worker 5 | . . 1 . . . . . 1 . 3 . . . . . Builder 3 | . . . . . 2 . . . . 1 . . . . . Hauler 2 | . . . . . 1 . . . . 1 . . . . . Recycler 2 | . . 1 . . . . . . . . . 1 . . . Mechanic 1 | . . . . . . . . . . 1 . . . . . Operator 2 | . . . . . 2 . . . . . . . . . . Watcher 2 | . . . . . . . . . . 2 . . . . . Swarmer 16 | . . . . 3 . . . . . 3 9 . . . 1 Cutter 2 | . . . . . . . . . . . 2 . . . . Grunt 38 | . 2 2 . 3 12 . 6 1 . 4 5 1 . 2 . Sentry 9 | . . . . . 1 . . . . 2 1 5 . . . Specialist 5 | . . . . . 2 . 3 . . . . . . . . Hunter 8 | . . . . . 1 . . . . 4 2 1 . . . Programmer 4 | . . . . . . . . . . 3 . 1 . . . Heavy 3 | . . . . . 1 . 1 . . 1 . . . . . Behemoth 1 | . . . . . . . . . . . 1 . . . . Best Kill Streak 6 | . 2 3 . 3 6 . 3 2 . 4 3 2 . 2 1 Combat Bots Only 4 | . 2 2 . 3 4 . 3 1 . 3 3 2 . 2 1 Max Kills in Single Turn 3 | . 1 1 . 2 2 . 1 1 . 3 2 1 . 1 1 Gunslinging 1 | . . . . 1 . . . . . . 1 . . . . Exploded 2 | . . . . . 1 . . 1 . 1 2 . . . . Melee 1 | . . . . . . . . . . 1 . 1 . . . Uniques/NPCs Destroyed . | . . . . . . . . . . . . . . . . Combat | -11 -10 -10 -10 -9 -8 -7 -7 -6 -6 -6 -6 -6 -5 -5 -5 -------- Run | Yrd Mat Min Exi Min Mat Fac DSF Fac Was Fac Gar Ext Fac Gar Fac Hostile Shots Fired 739 | . 10 17 . 47 39 . 56 . . 111 83 220 13 32 111 Missed 265 | . 2 1 . 17 15 . 16 . . 41 19 91 1 12 50 Damage Taken 7619 | . 87 198 . 378 524 . 886 8 . 766 1030 2052 249 377 1064 Core 2004 | . . 39 . 27 97 . 121 . . 32 110 572 101 189 716 Absorbed by Shields 263 | . . . . . . . . . . . . 202 . . 61 Ignored by Resistances 167 | . . . . . . . . . . 167 . . . . . Regen/Repaired (Parts) 89 | . . . . . . . . . . 89 . . . . . Core Remaining (%) 70 | 100 . . . 73 82 . 82 . . . . 16 . . . Volleys Fired 249 | . 10 12 . 36 30 . 13 1 . 43 45 38 3 13 5 Largest 4 | . 2 2 . 2 4 . 4 4 . 4 4 2 2 1 1 Hottest 320 | . 70 70 . 150 320 . 269 234 . 306 291 135 120 57 98 Shots Fired 669 | . 20 24 . 49 89 . 65 4 . 157 154 85 4 13 5 Gun 615 | . 20 24 . 20 88 . 65 4 . 157 149 85 3 . . Cannon 28 | . . . . 9 . . . . . . . . 1 13 5 Launcher 6 | . . . . . 1 . . . . . 5 . . . . Special 20 | . . . . 20 . . . . . . . . . . . Kinetic 142 | . 10 12 . 2 . . 28 1 . . 29 46 1 13 . Thermal 424 | . 10 12 . 47 88 . 37 3 . 122 66 31 3 . 5 Explosive 1 | . . . . . 1 . . . . . . . . . . Electromagnetic 102 | . . . . . . . . . . 35 59 8 . . . Robot Hit Streak 24 | . 3 5 . 8 19 . 22 2 . 24 12 18 11 10 2 Robot Miss Streak 8 | . 3 2 . 1 8 . 3 1 . 5 5 2 . 1 2 Penetration Max 1 | . . . . . . . . . . . . 1 . . . Secondary Targets 11 | . . 1 . 2 1 . 2 . . 1 4 . . . . Max Gunslinging Chain 1 | . . 1 . 1 1 . 1 . . 1 1 . . . . Autonomous 84 | . . . . . . . 22 . . . 29 33 . . . Shots Hit Robots 431 | . 10 16 . 22 64 . 51 2 . 93 88 69 4 10 2 Core Hits 216 | . 5 8 . 9 58 . 24 3 . 41 40 21 . 5 2 Critical Kills 3 | . . . . . . . 2 . . . . 1 . . . Critical Parts Destroyed 5 | . . . . . . . . . . . 2 3 . . . Critical Strikes 37 | . . . . 2 . . 3 . . 11 6 14 1 . . Burn 23 | . . . . 2 . . 1 . . 11 3 5 1 . . Destroy 9 | . . . . . . . 2 . . . 2 5 . . . Corrupt 3 | . . . . . . . . . . . 1 2 . . . Sever 2 | . . . . . . . . . . . . 2 . . . Melee Attacks 11 | . . . . . . . . . . . . 11 . . . Impact . | . . . . . . . . . . . . . . . . Slashing 11 | . . . . . . . . . . . . 11 . . . Piercing . | . . . . . . . . . . . . . . . . Sneak Attacks 2 | . . . . . . . . . . . . 2 . . . Combat Hostiles 1 | . . . . . . . . . . . . 1 . . . Follow-up Attacks . | . . . . . . . . . . . . . . . . Damage Inflicted 11149 | . 104 221 . 336 1675 . 1199 163 . 2425 2333 2133 91 351 118 Guns 9043 | . 96 213 . 192 1425 . 1199 41 . 2065 1952 1810 50 . . Cannons 616 | . . . . 141 15 . . . . . . . 41 351 68 Explosions 1093 | . . . . . 235 . . 122 . 315 381 . . . 40 Melee 320 | . . . . . . . . . . . . 320 . . . Ramming 77 | . 8 8 . 3 . . . . . 45 . 3 . . 10 Kinetic 3138 | . 57 113 . 28 . . 614 . . . 685 1249 41 351 . Thermal 5949 | . 39 100 . 305 1425 . 585 118 . 1862 890 467 50 . 108 Explosive 235 | . . . . . 235 . . . . . . . . . . Electromagnetic 1415 | . . . . . . . . 45 . 518 758 94 . . . Impact 15 | . . . . . 15 . . . . . . . . . . Slashing 320 | . . . . . . . . . . . . 320 . . . Piercing . | . . . . . . . . . . . . . . . . Highest Corruption 37 | . . . . . 1 . . . . 3 31 37 . . . Average Corruption 14 | . . . . . 1 . . . . 1 19 34 . . . Corruption Purged 1 | . . . . . . . . . . 1 . . . . . Corruption Blocked . | . . . . . . . . . . . . . . . . Effects 96 | . . . . . . . . . . 14 40 42 . . . Message Errors 26 | . . . . . . . . . . 5 11 10 . . . Matter Fused 17 | . . . . . . . . . . 6 8 3 . . . Heat Flow Errors 10 | . . . . . . . . . . . 1 9 . . . Energy Discharges 14 | . . . . . . . . . . 2 4 8 . . . Parts Rejected 1 | . . . . . . . . . . . 1 . . . . Parts Fused 2 | . . . . . . . . . . . 2 . . . . Data Loss (minor) 8 | . . . . . . . . . . . 4 4 . . . Data Loss (major) 2 | . . . . . . . . . . . 2 . . . . Misfires 4 | . . . . . . . . . . . 2 2 . . . Alerts 2 | . . . . . . . . . . . 1 1 . . . Misdirections 1 | . . . . . . . . . . . . 1 . . . Weapon Failures 9 | . . . . . . . . . . 1 4 4 . . . Overload Shots . | . . . . . . . . . . . . . . . . Overflow Damage 78 | . . . . . . . . 17 . 1 7 . . 9 44 Projectiles 9 | . . . . . . . . . . . . . . 9 . Explosions 69 | . . . . . . . . 17 . 1 7 . . . 44 Melee . | . . . . . . . . . . . . . . . . Knockbacks 7 | . . 1 . . . . . . . . . . 1 5 . Impact 1 | . . 1 . . . . . . . . . . . . . Kinetic 4 | . . . . . . . . . . . . . 1 3 . Secondary 2 | . . . . . . . . . . . . . . 2 . Self-Inflicted Damage 154 | . . . . . . . . 11 . . 64 1 . . 78 Shots 4 | . . . . . . . . 1 . . 2 . . . 1 Rammed 12 | . . 3 . 2 . . . . . 3 . 1 . . 3 Targets Rammed 18 | . 3 3 . 2 . . . . . 6 . 1 . . 3 Kicked 3 | . 3 . . . . . . . . . . . . . . Crushed 3 | . . . . . . . . . . 3 . . . . . Highest Temperature 558 | . 148 157 . 151 402 . 344 108 . 558 451 239 30 15 92 Average Temperature 140 | . 59 94 . 75 133 . 145 61 . 194 114 114 12 7 42 Received Heat Transfer 1685 | . 48 129 . 228 162 . 216 . . 99 126 292 99 183 103 Effects 23 | . . . . . . . . . . 19 4 . . . . Shutdowns 7 | . . . . . . . . . . 6 1 . . . . Energy Bleed 3 | . . . . . . . . . . 3 . . . . . Interference 8 | . . . . . . . . . . 6 2 . . . . Matter Decay 2 | . . . . . . . . . . 2 . . . . . Short Circuit 1 | . . . . . . . . . . . 1 . . . . Damage (minor) 2 | . . . . . . . . . . 2 . . . . . Siege Activations . | . . . . . . . . . . . . . . . . Robots Corrupted . | . . . . . . . . . . . . . . . . Combat Hostiles . | . . . . . . . . . . . . . . . . Parts Fried 5 | . . . . . . . . . . 4 1 . . . . Impact Corruptions . | . . . . . . . . . . . . . . . . Robots Melted 4 | . . . . 1 . . . . . 2 . 1 . . . Combat Hostiles 4 | . . . . 1 . . . . . 2 . 1 . . . Parts Melted 24 | . . . . 3 7 . 2 . . 5 3 3 . . 1 Heat Transferred 12813 | . 111 296 . 925 3262 . 1377 137 . 3654 1606 1110 185 . 150 Parts Sabotaged . | . . . . . . . . . . . . . . . . Parts Stolen . | . . . . . . . . . . . . . . . . Parts Stripped . | . . . . . . . . . . . . . . . . Power Chain Reactions 5 | . . . . . . . . . . 2 2 . . . 1 Alert | -11 -10 -10 -10 -9 -8 -7 -7 -6 -6 -6 -6 -6 -5 -5 -5 ------- Run | Yrd Mat Min Exi Min Mat Fac DSF Fac Was Fac Gar Ext Fac Gar Fac Peak Influence 935 | . 106 90 . 130 382 173 306 232 81 297 931 935 466 366 405 Initial 488 | . . 40 . . . 173 121 160 81 . 90 488 436 319 191 Average 253 | . 56 83 . 61 112 173 224 178 43 150 550 732 450 333 270 Maximum Alert Level 3 | . . . . . 1 . 1 1 . 1 3 3 2 1 2 Low Security (%) 61 | 100 100 100 . 100 79 100 36 74 100 78 13 . . . 29 Level 1 16 | . . . . . 20 . 63 25 . 21 14 . . 100 70 Level 2 12 | . . . . . . . . . . . 43 45 100 . . Level 3 9 | . . . . . . . . . . . 28 54 . . . Level 4 . | . . . . . . . . . . . . . . . . Level 5 . | . . . . . . . . . . . . . . . . High Security . | . . . . . . . . . . . . . . . . Max Security . | . . . . . . . . . . . . . . . . Sterilizations 1 | . . . . . . . 1 . . . . . . . . Squads Dispatched 28 | . 2 . . . 7 1 2 . . 8 . 6 . . 2 Investigation 15 | . 1 . . . 5 1 . . . 2 . 4 . . 2 Extermination 2 | . . . . . . . . . . 2 . . . . . Reinforcement 7 | . 1 . . . 2 . 2 . . 1 . 1 . . . Assault 1 | . . . . . . . . . . . . 1 . . . Garrison 3 | . . . . . . . . . . 3 . . . . . Intercept . | . . . . . . . . . . . . . . . . Searches Triggered . | . . . . . . . . . . . . . . . . Construction Impeded 1 | . . . . . . . . . . . . 1 . . . Haulers Reinforced . | . . . . . . . . . . . . . . . . Active Scanning Responses . | . . . . . . . . . . . . . . . . Cargo Convoy Interrupts . | . . . . . . . . . . . . . . . . Stealth | -11 -10 -10 -10 -9 -8 -7 -7 -6 -6 -6 -6 -6 -5 -5 -5 --------- Run | Yrd Mat Min Exi Min Mat Fac DSF Fac Was Fac Gar Ext Fac Gar Fac Distress Signals 6 | . . . . . 1 . . . . 2 . 2 1 . . Communications Jammed . | . . . . . . . . . . . . . . . . Distress Signals . | . . . . . . . . . . . . . . . . Times Spotted 146 | . 6 2 . 8 18 . 8 . . 22 22 32 5 5 18 Peak Tracking Total 7 | . 3 2 . 3 5 . 3 . . 3 3 7 6 6 7 Tactical Retreats 15 | . . . . . 2 . . . . . 3 5 . 1 4 Traps | -11 -10 -10 -10 -9 -8 -7 -7 -6 -6 -6 -6 -6 -5 -5 -5 ------- Run | Yrd Mat Min Exi Min Mat Fac DSF Fac Was Fac Gar Ext Fac Gar Fac Traps Triggered 15 | . 1 . . . . . 1 1 . 4 3 2 . 2 1 Indirectly . | . . . . . . . . . . . . . . . . Trap Hack Attempts . | . . . . . . . . . . . . . . . . Triggered . | . . . . . . . . . . . . . . . . Disarmed 8 | . 8 . . . . . . . . . . . . . . Reprogrammed 5 | . . . . . 5 . . . . . . . . . . Reused 3 | . . . . . 3 . . . . . . . . . . Traps Extracted . | . . . . . . . . . . . . . . . . Installed . | . . . . . . . . . . . . . . . . Triggered 3 | . . . . . 3 . . . . . . . . . . Machines | -11 -10 -10 -10 -9 -8 -7 -7 -6 -6 -6 -6 -6 -5 -5 -5 ---------- Run | Yrd Mat Min Exi Min Mat Fac DSF Fac Was Fac Gar Ext Fac Gar Fac Machines Disabled 16 | . . . . . 3 . . 2 . 3 5 1 . . 2 Max in Single Turn 3 | . . . . . 3 . . 2 . 1 1 1 . . 2 Garrison Relay 4 | . . . . . . . . . . . 4 . . . . Machines Repaired . | . . . . . . . . . . . . . . . . Machines Dismantled . | . . . . . . . . . . . . . . . . Machines Sabotaged . | . . . . . . . . . . . . . . . . Overloaded Fab Kills 4 | . . . . . . . . . . . . . . . 4 Hacking | -11 -10 -10 -10 -9 -8 -7 -7 -6 -6 -6 -6 -6 -5 -5 -5 --------- Run | Yrd Mat Min Exi Min Mat Fac DSF Fac Was Fac Gar Ext Fac Gar Fac Machines Accessed 28 | . 2 . 2 . 7 2 . . . 4 2 6 1 . 2 Terminals 19 | . 2 . . . 7 2 . . . . 2 6 . . . Fabricators 1 | . . . . . . . . . . . . . . . 1 Repair Stations 3 | . . . . . . . . . . 2 . . . . 1 Recycling Units 1 | . . . . . . . . . . 1 . . . . . Scanalyzers . | . . . . . . . . . . . . . . . . Garrison Access 2 | . . . . . . . . . . 1 . . 1 . . Total Hacks 74 | . 7 . 2 . 24 4 . . . 11 5 16 1 . 4 Successful 32 | . 6 . 2 . 12 1 . . . 7 . 2 1 . 1 Failed 42 | . 1 . . . 12 3 . . . 4 5 14 . . 3 Catastrophic 9 | . . . . . 2 1 . . . 1 2 2 . . 1 Database Lockouts . | . . . . . . . . . . . . . . . . Manual 26 | . 1 . 1 . 18 . . . . . 1 4 . . 1 Terminals 56 | . 7 . . . 24 4 . . . . 5 16 . . . Fabricators 1 | . . . . . . . . . . . . . . . 1 Repair Stations 9 | . . . . . . . . . . 6 . . . . 3 Recycling Units 4 | . . . . . . . . . . 4 . . . . . Scanalyzers . | . . . . . . . . . . . . . . . . Garrison Access 2 | . . . . . . . . . . 1 . . 1 . . Terminal Hacks 18 | . 5 . 2 . 8 1 . . . . . 2 . . . Record 1 | . . . 1 . . . . . . . . . . . . Prototype ID Bank 2 | . . . . . 2 . . . . . . . . . . Open Door 2 | . . . . . . . . . . . . 2 . . . Open DSF 1 | . . . . . . 1 . . . . . . . . . Branch Access Points 1 | . 1 . . . . . . . . . . . . . . Emergency Access Points 1 | . 1 . . . . . . . . . . . . . . Alert Level 1 | . . . . . 1 . . . . . . . . . . Unreport Threat 1 | . . . . . 1 . . . . . . . . . . Locate Traps 1 | . 1 . . . . . . . . . . . . . . Disarm Traps 2 | . 2 . . . . . . . . . . . . . . Reprogram Traps 1 | . . . . . 1 . . . . . . . . . . Recall Investigation 1 | . . . . . 1 . . . . . . . . . . Zone Layout 2 | . . . . . 2 . . . . . . . . . . Derelict Proto ID Bank 1 | . . . 1 . . . . . . . . . . . . Fabricator Hacks . | . . . . . . . . . . . . . . . . Repair Station Hacks 4 | . . . . . . . . . . 4 . . . . . Scan Component 2 | . . . . . . . . . . 2 . . . . . Repair 2 | . . . . . . . . . . 2 . . . . . Recycling Unit Hacks 2 | . . . . . . . . . . 2 . . . . . Process 1 | . . . . . . . . . . 1 . . . . . Report Inventory 1 | . . . . . . . . . . 1 . . . . . Scanalyzer . | . . . . . . . . . . . . . . . . Garrison Access Hacks 2 | . . . . . . . . . . 1 . . 1 . . Unlock Access 2 | . . . . . . . . . . 1 . . 1 . . Unauthorized Hacks 6 | . 1 . . . 4 . . . . . . . . . 1 Terminals 5 | . 1 . . . 4 . . . . . . . . . . Botnet 4 | . 1 . . . 3 . . . . . . . . . . Disrupt 1 | . . . . . 1 . . . . . . . . . . Fabricators 1 | . . . . . . . . . . . . . . . 1 Overload 1 | . . . . . . . . . . . . . . . 1 Repair Stations . | . . . . . . . . . . . . . . . . Recycling Units . | . . . . . . . . . . . . . . . . Scanalyzers . | . . . . . . . . . . . . . . . . Garrison Access . | . . . . . . . . . . . . . . . . Data Cores Recovered 1 | . . . . . 1 . . . . . . . . . . Used 1 | . . . . . 1 . . . . . . . . . . Hacking Detections 22 | . 2 . . . 7 1 . . . 3 2 5 1 . 1 Full Trace Events 15 | . . . . . 5 1 . . . 2 2 4 . . 1 Feedback Events 4 | . . . . . 1 . . . . 2 . 1 . . . Corruption 4 | . . . . . 1 . . . . 2 . 1 . . . Feedback Blocked . | . . . . . . . . . . . . . . . . Robot Schematics Acquired . | . . . . . . . . . . . . . . . . Robots Built . | . . . . . . . . . . . . . . . . Authchips . | . . . . . . . . . . . . . . . . Time . | . . . . . . . . . . . . . . . . Total Robot Build Rating . | . . . . . . . . . . . . . . . . Part Schematics Acquired . | . . . . . . . . . . . . . . . . Parts Built . | . . . . . . . . . . . . . . . . Authchips . | . . . . . . . . . . . . . . . . Time . | . . . . . . . . . . . . . . . . Total Part Build Rating . | . . . . . . . . . . . . . . . . Parts Repaired 2 | . . . . . . . . . . 2 . . . . . Time 105 | . . . . . . . . . . 105 . . . . . Parts Recycled . | . . . . . . . . . . . . . . . . Recycled Matter 29 | . . . . . . . . . . 29 . . . . . Retrieved Matter . | . . . . . . . . . . . . . . . . Retrieved Components . | . . . . . . . . . . . . . . . . Parts Scanalyzed . | . . . . . . . . . . . . . . . . Part Schematics Acquired . | . . . . . . . . . . . . . . . . Parts Damaged . | . . . . . . . . . . . . . . . . Bothacking | -11 -10 -10 -10 -9 -8 -7 -7 -6 -6 -6 -6 -6 -5 -5 -5 ------------ Run | Yrd Mat Min Exi Min Mat Fac DSF Fac Was Fac Gar Ext Fac Gar Fac Used RIF Installer 2 | . . . . . . . . . . . 1 . . 1 . Command Fork 1 | . . . . . . . . . . . . . . 1 . Robots Hacked . | . . . . . . . . . . . . . . . . Non-combat . | . . . . . . . . . . . . . . . . Combat . | . . . . . . . . . . . . . . . . Robot Hacks Applied . | . . . . . . . . . . . . . . . . Relay Couplers Released 17 | . . . . . . . . . . . 17 . . . . Machine Destruction 17 | . . . . . . . . . . . 17 . . . . Attached 3 | . . . . . . . . . . . 1 2 . . . Fabnet Peak Effective % . | . . . . . . . . . . . . . . . . Robots Rewired 4 | . . . . . . . . . . . . 4 . . . Allies Hacked . | . . . . . . . . . . . . . . . . Hacks Repelled . | . . . . . . . . . . . . . . . . Allies | -11 -10 -10 -10 -9 -8 -7 -7 -6 -6 -6 -6 -6 -5 -5 -5 -------- Run | Yrd Mat Min Exi Min Mat Fac DSF Fac Was Fac Gar Ext Fac Gar Fac Total Allies 6 | . . . . . . . . . . . . 6 . . . Largest Group 5 | . . . . . . . . . . . . 5 . . . Highest-Rated Group 216 | . . . . . . . . . . . . 216 . . . Highest-Rated Ally 159 | . . . . . . . . . . . . 159 . . . Total Orders . | . . . . . . . . . . . . . . . . Ally Attacks 62 | . . . . . . . . . . . . 62 . . . Total Damage 1644 | . . . . . . . . . . . . 1644 . . . Kills 12 | . . . . . . . . . . . . 12 . . . Allies Corrupted . | . . . . . . . . . . . . . . . . Allies Melted . | . . . . . . . . . . . . . . . . Intel | -11 -10 -10 -10 -9 -8 -7 -7 -6 -6 -6 -6 -6 -5 -5 -5 ------- Run | Yrd Mat Min Exi Min Mat Fac DSF Fac Was Fac Gar Ext Fac Gar Fac Robot Analysis Total . | . . . . . . . . . . . . . . . . Derelict Logs Recovered 2 | . . 1 . 1 . . . . . . . . . . . Drone Launches . | . . . . . . . . . . . . . . . . Drone Recoveries . | . . . . . . . . . . . . . . . . Exploration | -11 -10 -10 -10 -9 -8 -7 -7 -6 -6 -6 -6 -6 -5 -5 -5 ------------- Run | Yrd Mat Min Exi Min Mat Fac DSF Fac Was Fac Gar Ext Fac Gar Fac Turns Passed 7050 | 3 186 299 390 584 763 53 295 82 738 1619 967 700 63 138 170 Spaces Moved 3693 | 3 126 166 241 268 358 30 76 32 289 721 482 411 87 125 278 Core 324 | . . . . . . . 10 . . . . 89 . 62 163 Treads 2382 | . . 121 241 268 358 30 66 32 289 721 256 . . . . Legs 720 | 3 126 45 . . . . . . . . 226 320 . . . Wheels . | . . . . . . . . . . . . . . . . Hover 170 | . . . . . . . . . . . . 2 87 63 18 Flight 97 | . . . . . . . . . . . . . . . 97 Fastest Speed 42 | 120 120 120 160 160 160 160 160 250 165 165 120 50 60 50 42 Average Speed 150 | 120 120 149 160 160 160 165 301 250 246 169 148 117 60 55 49 Slowest Speed 700 | 120 120 160 160 160 160 240 700 250 250 245 330 190 120 60 120 Overloaded Moves . | . . . . . . . . . . . . . . . . Propulsion Burnouts . | . . . . . . . . . . . . . . . . Robots Hopped 1 | . . . . . . . . . . . . . . . 1 Cave-ins Triggered . | . . . . . . . . . . . . . . . . Exploration Rate (%) 34 | 2 27 39 61 53 20 1 77 1 95 14 57 56 4 28 11 Regions Visited 15 Branch Regions 4 Pre-discovered Areas 3 | . . 1 1 1 . . . . . . . . . . . Known Exits Taken 4 | . 1 . . . . 1 . . . 1 . . 1 . . Unknown Exits Taken 6 | 1 . 1 1 1 1 . . . . . . 1 . . . Scrap Searched 4 | . . 1 . 3 . . . . . . . . . . . Spaces Dug . | . . . . . . . . . . . . . . . . Terrain Destroyed 70 | . . . . 1 15 . . 19 . 4 7 . . 1 23 Melee . | . . . . . . . . . . . . . . . . Projectile 5 | . . . . 1 . . . . . . 1 . . 1 2 AOE 65 | . . . . . 15 . . 19 . 4 6 . . . 21 Terrain Rammed . | . . . . . . . . . . . . . . . . Walls Destroyed . | . . . . . . . . . . . . . . . . Machines Disabled . | . . . . . . . . . . . . . . . . Actions | -11 -10 -10 -10 -9 -8 -7 -7 -6 -6 -6 -6 -6 -5 -5 -5 --------- Run | Yrd Mat Min Exi Min Mat Fac DSF Fac Was Fac Gar Ext Fac Gar Fac Total 4678 | 2 141 192 249 335 474 36 109 33 320 1016 640 557 92 180 302 Wait 371 | . . . . 18 54 . . . . 209 31 41 . 18 . Move 3678 | 2 125 165 240 267 357 29 75 32 288 721 480 411 87 123 276 Hop 1 | . . . . . . . . . . . . . . . 1 Pick Up 41 | . 1 2 5 2 7 . 1 . 4 7 12 . . . . Fast Attach 69 | . 1 2 . 1 5 1 6 . 7 9 13 14 2 . 8 Attach 23 | . . 1 . 1 2 1 6 . 1 3 7 1 . . . Detach 17 | . . 1 . . 1 3 5 . 1 1 5 . . . . Swap 35 | . 1 2 . 4 7 . 1 . 3 3 12 2 . . . Drop 92 | . . 4 4 4 11 2 . . 14 14 20 16 . . 3 Fire 249 | . 10 12 . 36 30 . 13 1 . 43 45 38 3 13 5 Melee 11 | . . . . . . . . . . . . 11 . . . Ram 3 | . . . . . . . . . . . . . . . 3 Kick 3 | . 3 . . . . . . . . . . . . . . Crush 11 | . . 3 . 2 . . . . . 6 . . . . . Escape Stasis 59 | . . . . . . . 2 . . . 15 10 . 26 6 Rewire 15 | . . . . . . . . . 2 . . 13 . . . Trap . | . . . . . . . . . . . . . . . . Miscellaneous . | . . . . . . . . . . . . . . . . Route ------- -11/Scrapyard -10/Materials (discovered 2 exits: *Min x2) -10/Mines (discovered 2 exits: [*Mat] / *Exi) -10/Exiles -9/Mines (discovered 2 exits: *Mat x2) -8/Materials -7/Factory -7/DSF -6/Factory -6/Waste -6/Factory -6/Garrison (discovered 2 exits: *Ext x2) -6/Extension (discovered 2 exits: *Fac / [*Cet]) -5/Factory -5/Garrison -5/Factory History --------- Turn | Location | Event 1 | -11/Scrapyard | Discovered new exit (range 3) 4 | -11/Scrapyard | Entered Materials 125 | -10/Materials | Identified exit to Mines 190 | -10/Materials | Entered Mines 196 | -10/Mines | Met a Derelict bent on vengeance 209 | -10/Mines | Discovered new exit (range 9) 255 | -10/Mines | Learned location of Storage (-9) 332 | -10/Mines | Build established: Mutant 481 | -10/Mines | Deemed a non-threat by the Exiles lab entrance 482 | -10/Mines | Discovered new exit (range 5) 489 | -10/Mines | Entered Exiles 535 | -10/Exiles | Met 8R-AWN 565 | -10/Exiles | Met EX-HEX 615 | -10/Exiles | Met EX-BIN 637 | -10/Exiles | Aligned with FarCom system 639 | -10/Exiles | Given EX-Vault access code 677 | -10/Exiles | Opened EX-Vault 688 | -10/Exiles | Found AWS/Gauss 723 | -10/Exiles | Warned to stay clear of 0b10 Research branches 769 | -10/Exiles | Met EX-DEC 779 | -10/Exiles | Learned location of Zion (-6) 862 | -10/Exiles | Discovered new exit (range 14) 879 | -10/Exiles | Left Exiles lab with AWS/Gauss 879 | -10/Exiles | Entered Mines 927 | -9/Mines | Discovered new exit (range 10) 1028 | -9/Mines | Discovered new exit (range 9) 1463 | -9/Mines | Entered Materials 1463 | -8/Materials | Evolved 4 slots: Utility x2, Weapon x2 1769 | -8/Materials | Build established: Skirmisher 2204 | -8/Materials | Discovered new exit (range 5) 2226 | -8/Materials | Entered Factory 2226 | -7/Factory | Evolved 2 slots: Utility x2 2279 | -7/Factory | Identified exit to DSF 2279 | -7/Factory | Entered DSF 2333 | -7/DSF | Additional patrols routed to DSF 2367 | -7/DSF | Lost 5 parts (2n2u1w) 2502 | -7/DSF | Sterilization system engaged 2522 | -7/DSF | Ambient heat levels rising (+10) 2537 | -7/DSF | Ambient heat levels rising (+10) 2542 | -7/DSF | Discovered new exit (range 12) 2552 | -7/DSF | Ambient heat levels rising (+10) 2567 | -7/DSF | Ambient heat levels rising (+10) 2574 | -7/DSF | Entered Factory 2574 | -6/Factory | Evolved 2 slots: Power x1, Propulsion x1 2656 | -6/Factory | Sucked down chute 2656 | -6/Factory | Entered Waste 2656 | -6/Waste | The area was eerily silent 2723 | -6/Waste | Build established: Scavenger-Skirmisher 2738 | -6/Waste | Found Damper Plating 3015 | -6/Waste | Discovered new exit (range 16) 3075 | -6/Waste | Found Damper Plating 3360 | -6/Waste | A Compactor rumbled back to life 3394 | -6/Waste | Entered Factory 3601 | -6/Factory | Repaired Broken Hyb. Antimatter Reactor 4192 | -6/Factory | Repaired Adv. Transmission Jammer 4196 | -6/Factory | Garrison activated, responded to threat 5013 | -6/Factory | Identified exit to Garrison 5013 | -6/Factory | Entered Garrison 5070 | -6/Garrison | Triggered checkpoint 5099 | -6/Garrison | Garrison Relay disabled 5313 | -6/Garrison | System corruption reached 10% 5314 | -6/Garrison | Spotted B-75 Beast 5329 | -6/Garrison | Destroyed B-75 Beast 5446 | -6/Garrison | Discovered new exit (range 15) 5518 | -6/Garrison | Triggered checkpoint 5564 | -6/Garrison | Garrison Relay disabled 5668 | -6/Garrison | System corruption reached 30% 5693 | -6/Garrison | Triggered checkpoint 5766 | -6/Garrison | Discovered new exit (range 12) 5825 | -6/Garrison | Installed Relay Interface Framework 5840 | -6/Garrison | Triggered checkpoint 5935 | -6/Garrison | Garrison Relay disabled 5980 | -6/Garrison | Entered Extension 5984 | -6/Extension | Disrupted transfer network 6044 | -6/Extension | Rescued a captive Derelict 6059 | -6/Extension | Rescued a captive Derelict 6252 | -6/Extension | Lost 3 allies 6268 | -6/Extension | Rescued A7 6532 | -6/Extension | Spotted B-75 Beast 6563 | -6/Extension | Spotted B-75 Beast 6569 | -6/Extension | Extracted ID and sensor layout for unrecognized location from A7's data core 6612 | -6/Extension | Core integrity fell below 50% 6650 | -6/Extension | Lost 7 parts (1p3n2u1w) 6651 | -6/Extension | Discovered new exit (range 16) 6652 | -6/Extension | Discovered new exit (range 15) 6680 | -6/Extension | First assault squad dispatched 6680 | -6/Extension | Entered Factory 6680 | -5/Factory | Evolved 2 slots: Utility x1, Weapon x1 6743 | -5/Factory | Identified exit to Garrison 6743 | -5/Factory | Entered Garrison 6826 | -5/Garrison | Expanded RIF knowledge: Command Fork 6876 | -5/Garrison | Discovered new exit (range 10) 6881 | -5/Garrison | Entered Factory 6882 | -5/Factory | Lost 3 parts (1n1u1w) 6909 | -5/Factory | Build established: Mutant 6913 | -5/Factory | Core integrity fell below 50% 6972 | -5/Factory | Core integrity fell below 20% 7051 | -5/Factory | Destroyed by S-27 Virus with Autogun Last Messages --------------- 07018_ Acquired 21 matter. 07019_ Acquired Lgt. Nuclear Core. 07024_ Acquired Field Propulsion Drive. 07032_ Fusion Modulator explodes. 07032_ Field Propulsion Drive destroyed. 07032_ Destroyed Field Propulsion Drive. 07032_ Terminal disabled. 07033_ Penetrated by Slug. 07033_ Weight Redist. System destroyed. 07034_ Dropped Lgt. Nuclear Core. 07035_ Dropped Adv. Plasma Cannon. 07035_ Acquired Lgt. Nuclear Core. 07036_ Gravmag System destroyed. 07037_ Slug penetrates Fabricator. 07039_ Slug penetrates Wall. 07047_ Field Propulsion Drive destroyed. 07047_ Dropped Lgt. Nuclear Core. 07048_ S-27 Virus suffers critical hit (Destroy). 07048_ S-27 Virus destroyed. 07049_ Relay Coupler [Hunter] destroyed. Map ----- +----------------------------------------------------+ | ####### # #??# "%[% | | " #############+###### #??# "= | | " # #??# "% | | " # ########/#### " " | | " # #?# ## " " | | " # #?#"""" ## "" ]""" ## | | " + #?#"""" ## "##+## | | " # #?#"""" ######+"""""# | | # #?#"""" #????# ###### | | # ##########?#"""" #????# # # | | +##### #??????????#"""" #????# # # " | | #??????????#"""" #???## # # " | | #??????????# #???#" " # " | | #?????????######+######### # # | | " " " #??????#### s # # | | " " " #??????+ + # | | " " " #??????#### #### # | | " " " ** #?????????# *###########??###### | | ?" " " * ##?????????# [#?????????????????# | | ?" " " #?????????## %#?????????????????##### | | ???" " !!#?????????# ss#?????????????????# | | ???" " !!#?????????#TA s#?????????????????# | | ???" " #?????????## #?????????????????# | | ???? #????????### ###???????????????# | | ????? #????????# #####???????????# | | ???? ?????????# @ #????????# | | ???????! = ?? T" #????????# | | ?????????Y "" +????????# | | ???????????* #????????# | | ??????????? ##+####### #????????# | | ?????????????????????# ###### #????????# | | ?????????????????????####+####??????#????????# | | ?????????????????????????????????????????????##### | | ?????????????????????????????????????????????# | | ?????????????????????????????????????????????# | | ?????????????????????????????????????????????# | | ??????????????????????????????????????????????? | | ????????????????????????????????????????????????"" | | ??????????????????????????????????????????????? "" | | ??????????????????????????????????????????????? "" | | ??????????????????????????????????????????????? "" | | ??????????????????????????????????????????????? "" | | ??????????????????????????????????????????????? "" | | ?????????????????????????????????????????????# | | ?????????????????????????????????????????????# | | ?????????????????????????????????????????????##### | | ?????????????????????????????????????????????????? | | ?????????????????????????????????????????????????? | | ?????????????????????????????????????????????????? | | ?????????????????????????????????????????????????? | +----------------------------------------------------+ Best States ------------- Heat Dissipation 91 Energy Generation 32 Energy Capacity 1290 Matter Stores 300 Matter Capacity 300 Sight Range 16 Terrain Scan Range 16 Terrain Scan Density 10 Jamming Range 16 Additional Mass Support 6 Armor Coverage 1600 Resistance: EM 90 Evasion (%) 61 Targeting Accuracy 5 Target Analysis 5 Armor Integrity Analysis 30 Recoil Reduction 3 Offensive Hacking 10 Relay Coupler Types 2 Relay Coupler Value 59 Item Schematics ----------------- None Robot Schematics ------------------ None Fabricated ------------ Nothing Alien Tech Used ----------------- None Achievements -------------- None Challenges ------------ None Game ------ Seed ImpactBiocellAccelerator Manual? 0 Play Time 00:45:31 Cumulative 654.7 hours Start 2024.02.13 @ 16:32:54 End 2024.02.13 @ 17:17:04 Sessions 1 Manual Loads 0 Difficulty Rogue Special Mode None Game No. 653 Rogue 380 Adventurer 123 Explorer 150 Win Type - Total 25 Types 19/0/4/1/0/0/0/1/0 Lore% 80 Gallery% 91 Achievement% 76 Wizard Run 0 Options --------- Layout 0 ASCII 0 Keyboard 1 Movement Numpad Keybinds 0 Fullscreen 2 Font 18/SmallcapsGlow Map View 76x50 Zoom Use 0% Tactical HUD 1 Map Filters NONE Filters NONE Steam 1 RUN: e34066f7-e902-478e-982a-78f3e44310e3